Workbook

Sheet Sheet1
A1: OFI Testing Equipment, Inc.
A2: 11302 Steeplecrest Drive Houston, TX 77065 USA
A3: Phone: 832-320-7300 · Fax: 713-880-9886 · Web: www.ofite.com
A5: Viscometer Calibration Report
A6: Oil Calibration Per API Recommended Practices; 13B-1 Annex I.5, 13B-2 Annex J.5, 10B-2 Annex B.3.6 and Specification 13A Section 5.2.6
C8: Repairs Required? | D8: No | J8: As Found Data Required by Customer? | K8: No
A10: Part Number: | E10: 130-76-1-C | H10: Model: | I10: =IF(ISNA(VLOOKUP(E10,Sheet3!A:B,2,0)),"",VLOOKUP(E10,Sheet3!A:B,2,0)) -> Model 900 Viscometer, Complete, 230 Volt | M10: Serial Number: | O10: 5551230000001 | S10: S/O# or J/O# | U10: 555123
C12: Bob | D12: B1 | F12: Spring | G12: F1
I13: RPM Check | L13: ± 1 RPM for speeds <100 RPM | N13: ± 1 % of nominal speed of 100 RPM or Greater
I14: Speed Setting (RPM): | L14: 3 | M14: 6 | N14: 100 | O14: 200 | P14: 300 | Q14: 600
I15: Actual: | L15: 3 | M15: 6 | N15: 100 | O15: 200 | P15: 300 | Q15: 600
I16: Allowed Deviation: | L16: 1 | M16: 1 | N16: =N14*1% -> 1 | O16: =O14*1% -> 2 | P16: =P14*1% -> 3 | Q16: =Q14*1% -> 6
I17: Actual Deviation: | L17: =MAX(ABS(L14-L15)) -> 0 | M17: =MAX(ABS(M14-M15)) -> 0 | N17: 0 | O17: =MAX(ABS(O14-O15)) -> 0 | P17: 0 | Q17: 0
I18: Pass / Fail: | L18: =IF(OR(L15=""),"Fail",IF(L16>L17,"Pass","Fail")) -> Pass | M18: =IF(OR(M15=""),"Fail",IF(M16>M17,"Pass","Fail")) -> Pass | N18: =IF(OR(N15=""),"Fail",IF(N16>N17,"Pass","Fail")) -> Pass | O18: Pass | P18: Pass | Q18: Pass
A19: AS FOUND MEASUREMENTS
A20: Calibration Fluid Viscosity | B20: Calibration Fluid Batch # | D20: Temp | E20: Calibrated Viscosity (CV) | F20: 600 RPM Reading | G20: =Sheet2!L19 -> 600 VIS: 600 Reading * 0.5050 | H20: Accepted Deviation | I20: Actual Deviation (600 VIS - CV) | J20: 300 RPM Reading | K20: =Sheet2!L20 -> 300 VIS: 300 Reading * 1.0000 | L20: Accepted Deviation | M20: Actual Deviation (300 VIS - CV) | N20: 200 RPM Reading | O20: =Sheet2!L21 -> 200 VIS: 200 Reading / 0.6667 | P20: Accepted Deviation | Q20: Actual Deviation (200 VIS - CV) | R20: 100 RPM Reading | S20: =Sheet2!L22 -> 100 VIS: 100 Reading / 0.3333 | T20: Accepted Deviation | U20: Actual Deviation (100 VIS - CV) | V20: Pass/Fail
A21: =Sheet2!G31 -> 100 cP | G21: =IF(Sheet2!S7="Yes",IF(Sheet2!$J$15*F21=0,"",Sheet2!$J$15*F21),"-") ->  | H21: =IF(Sheet2!S7="Yes",Sheet2!M16,"-") -> ±1.50 | I21: =IF(Sheet2!S7="Yes",IF(ISERR(G21-E21),"",G21-E21),"-") ->  | K21: =IF(Sheet2!$J$20*Sheet1!J21=0,"",Sheet2!$J$20*Sheet1!J21) ->  | L21: =Sheet2!M16 -> ±1.50 | M21: =IF(ISERR(K21-E21),"",K21-E21) ->  | O21: =IF(Sheet2!$J$16/0.6667*N21=0,"",Sheet2!$J$16/0.6667*N21) ->  | P21: =Sheet2!M16 -> ±1.50 | Q21: =IF(ISERR(O21-E21),"",O21-E21) ->  | S21: =IF(R21/Sheet2!$J$22=0,"",R21/Sheet2!$J$22) ->  | T21: =Sheet2!M16 -> ±1.50 | U21: =IF(ISERR(S21-E21),"",S21-E21) ->  | V21: =IF(ISERR(IF(AND(ABS(I21)<=Sheet2!$L$16,ABS(M21)<=Sheet2!$L$16,ABS(Q21)<=Sheet2!$L$16,ABS(U21)<=Sheet2!$L$16),"Pass","Fail")),"",IF(AND(ABS(I21)<=Sheet2!$L$16,ABS(M21)<=Sheet2!$L$16,ABS(Q21)<=Sheet2!$L$16,ABS(U21)<=Sheet2!$L$16),"Pass","Fail")) -> 
A22: =Sheet2!G32 -> 50 cP | G22: =IF(Sheet2!S7="Yes",IF(Sheet2!$J$15*F22=0,"",Sheet2!$J$15*F22),"-") ->  | H22: =IF(Sheet2!S7="Yes",Sheet2!M16,"-") -> ±1.50 | I22: =IF(Sheet2!S7="Yes",IF(ISERR(G22-E22),"",G22-E22),"-") ->  | K22: =IF(Sheet2!$J$20*Sheet1!J22=0,"",Sheet2!$J$20*Sheet1!J22) ->  | L22: =Sheet2!M16 -> ±1.50 | M22: =IF(ISERR(K22-E22),"",K22-E22) ->  | O22: =IF(Sheet2!$J$16/0.6667*N22=0,"",Sheet2!$J$16/0.6667*N22) ->  | P22: =Sheet2!M16 -> ±1.50 | Q22: =IF(ISERR(O22-E22),"",O22-E22) ->  | S22: =IF(R22/Sheet2!$J$22=0,"",R22/Sheet2!$J$22) ->  | T22: =Sheet2!M16 -> ±1.50 | U22: =IF(ISERR(S22-E22),"",S22-E22) ->  | V22: =IF(ISERR(IF(AND(ABS(I22)<=Sheet2!$L$16,ABS(M22)<=Sheet2!$L$16,ABS(Q22)<=Sheet2!$L$16,ABS(U22)<=Sheet2!$L$16),"Pass","Fail")),"",IF(AND(ABS(I22)<=Sheet2!$L$16,ABS(M22)<=Sheet2!$L$16,ABS(Q22)<=Sheet2!$L$16,ABS(U22)<=Sheet2!$L$16),"Pass","Fail")) -> 
T23: Calibration Result | V23: =IF(OR(V21="",V22=""),"",IF(AND(V21 = "Pass",V22 = "Pass"),"Pass","Fail")) -> 
I24: Per API RP 10B-2 Annex B, Equipment Calibration Requirements
A25: AS LEFT MEASUREMENTS
A26: C1 | B26: C2 | D26: C3 | E26: C4 | F26: C5 | G26: C6 | H26: C7 | I26: C8 | J26: C9 | K26: C10 | L26: C11 | M26: C12 | N26: C13 | O26: C14 | P26: C15 | Q26: C16 | R26: C17 | S26: C18 | T26: C19 | U26: C20 | V26: C21
A27: Calibration Fluid Viscosity | B27: Calibration Fluid Batch # | D27: Temp | E27: Calibrated Viscosity (CV) | F27: 600 RPM Reading | G27: =Sheet2!L19 -> 600 VIS: 600 Reading * 0.5050 | H27: Accepted Deviation | I27: Actual Deviation** | J27: 300 RPM Reading | K27: =Sheet2!L20 -> 300 VIS: 300 Reading * 1.0000 | L27: Accepted Deviation | M27: Actual Deviation | N27: 200 RPM Reading | O27: =Sheet2!L21 -> 200 VIS: 200 Reading / 0.6667 | P27: Accepted Deviation | Q27: Actual Deviation | R27: 100 RPM Reading | S27: =Sheet2!L22 -> 100 VIS: 100 Reading / 0.3333 | T27: Accepted Deviation | U27: Actual Deviation (100 VIS - CV) | V27: Pass/Fail
A28: =Sheet2!G31 -> 100 cP | B28: 309602 | D28: 25.3 | E28: 97.4 | F28: 193.7 | G28: =IF(Sheet2!S7="Yes",IF(Sheet2!$J$15*F28=0,"",Sheet2!$J$15*F28),"-") -> 97.8259841 | H28: =IF(Sheet2!S7="Yes",Sheet2!M16,"-") -> ±1.50 | I28: =IF(Sheet2!S7="Yes",IF(ISERR(G28-E28),"",G28-E28),"-") -> 0.4259840964 | J28: 97.3 | K28: =IF(Sheet2!$J$20*Sheet1!J28=0,"",Sheet2!$J$20*Sheet1!J28) -> 97.3 | L28: =Sheet2!M16 -> ±1.50 | M28: =IF(ISERR(K28-E28),"",K28-E28) -> -0.1 | N28: 65.2 | O28: =IF(Sheet2!$J$16/0.6667*N28=0,"",Sheet2!$J$16/0.6667*N28) -> 97.79281229 | P28: =Sheet2!M16 -> ±1.50 | Q28: =IF(ISERR(O28-E28),"",O28-E28) -> 0.3928122921 | R28: 32.5 | S28: =IF(R28/Sheet2!$J$22=0,"",R28/Sheet2!$J$22) -> 97.50975098 | T28: =Sheet2!M16 -> ±1.50 | U28: =IF(ISERR(S28-E28),"",S28-E28) -> 0.1097509751 | V28: =Sheet2!S15 -> Pass
A29: =Sheet2!G32 -> 50 cP | B29: 228501 | D29: 24.7 | E29: 48.2 | F29: 94.9 | G29: =IF(Sheet2!S7="Yes",IF(Sheet2!$J$15*F29=0,"",Sheet2!$J$15*F29),"-") -> 47.9281667 | H29: =IF(Sheet2!S7="Yes",Sheet2!M16,"-") -> ±1.50 | I29: =IF(Sheet2!S7="Yes",IF(ISERR(G29-E29),"",G29-E29),"-") -> -0.2718332951 | J29: 48 | K29: =IF(Sheet2!$J$20*Sheet1!J29=0,"",Sheet2!$J$20*Sheet1!J29) -> 48 | L29: =Sheet2!M16 -> ±1.50 | M29: -0.2 | N29: 32.1 | O29: =IF(Sheet2!$J$16/0.6667*N29=0,"",Sheet2!$J$16/0.6667*N29) -> 48.14646127 | P29: =Sheet2!M16 -> ±1.50 | Q29: -0.05353873351 | R29: 16.1 | S29: =IF(R29/Sheet2!$J$22=0,"",R29/Sheet2!$J$22) -> 48.30483048 | T29: =Sheet2!M16 -> ±1.50 | U29: 0.104830483 | V29: =Sheet2!U15 -> Pass
I30: ** For viscometers not using a B1F1 configuration, the 600 rpm reading is shown, but is not used for determining a pass/fail. | T30: Calibration Result | V30: =IF(OR(V28="",V29=""),"",IF(AND(V28 = "Pass",V29 = "Pass"),"Pass","Fail")) -> Pass
A32: Technician: | D32: John Doe | H32: Factory Recommendations*: | J32: Factory recalibration is recommended annually. Uncertainty: 0.5% | R32: Reviewed By: | T32: Jane Doe
J33: Calibration requirements are determined per customer's Quality Management System.
A34: Calibration Date: | D34: 2024-07-23 | H34: Per API RP 13B-1 and -2, viscometers used for testing drilling fluids should be verified with a traceable calibration fluid at least monthly. | R34: Review Date: | T34: 2024-07-24
H35: Per API RP 10B-2, viscometers used for testing cements should be verified for accuracy with a traceable calibration fluid at least quarterly.
A36: Calibration Due Date*: | D36: =IF(D34="","",D34+365) -> 2025-07-23
A39: Calibration Fluid Activation Date: | E39: =Sheet2!G31 -> 100 cP | F39: 2024-07-21 | H39: =Sheet2!G32 -> 50 cP | I39: 2024-07-21
F40: (Activation Date should not exceed 30 days of the calibration date)
A41: As Found Report
A42: List all damages which were observed. Describe how this could have affected measurements.
A46: List all repairs made prior to AS LEFT measuremnents.
A52: For internal use only.
A53: All master instruments and fluids are calibrated and/or certified to standards which are traceable to NIST. | M53: Instrument Certificates of Calibration attached
A54: Fluid Thermometer: | E54: 704 | G54: Model #: | H54: =Table_Query_from_MasterLog[Model] -> 4000,90080-09 | I54: Calibration Date: | K54: =DATEVALUE(Table_Query_from_MasterLog[CalDate]) -> 2024-05-08 | N54: Calibration Due: | P54: =DATEVALUE(Sheet4!F2) -> 2025-05-08 | S54: Serial No: | T54: =Sheet4!B2 -> 221540132
A56: Tachometer: | E56: 117 | G56: Model #: | H56: =Table_ExternalData_1[Model] -> 461920 | I56: Calibration Date: | K56: =DATEVALUE(Sheet4!E6) -> 2023-09-13 | N56: Calibration Due: | P56: =DATEVALUE(Sheet4!F6) -> 2024-09-13 | S56: Serial No: | T56: =Sheet4!B6 -> 10055320
A58: Ambient Monitor: | E58: 345 | G58: Model #: | H58: =Table_ExternalData_2[Model] -> RH300 | I58: Calibration Date: | K58: =DATEVALUE(Sheet4!E10) -> 2023-08-10 | N58: Calibration Due: | P58: =DATEVALUE(Sheet4!F10) -> 2024-08-10 | S58: Serial No: | T58: =Sheet4!B10 -> Z395285
B60: Ambient Conditions
D61: Room Temperature: | F61: 74.3 | J61: Relative Humidity: | L61: 47.2
A64: Revised 4/4/2023

Sheet Sheet2 (hidden)
A6: bob | B6: k2 | C6: k3 | D6: 100*k2/k3
A7: B1 | B7: 0.01323 | C7: 1.7023 | D7: =100*B7/C7 -> 0.7771838101 | R7: Standard: | S7: =IF(AND(Sheet1!D12="B1",Sheet1!G12="F1"),"Yes","No") -> Yes
A8: B2 | B8: 0.0261 | C8: 0.377 | D8: =100*B8/C8 -> 6.923076923 | F8: 100*k2/k3= | G8: =VLOOKUP(Sheet1!D12,Sheet2!A6:D11,4,FALSE) -> 0.7771838101
A9: B3 | B9: 0.0529 | C9: 0.268 | D9: =100*B9/C9 -> 19.73880597 | F9: k1= | G9: =VLOOKUP(Sheet1!G12,Sheet2!A14:B21,2,FALSE) -> 386
A10: B4 | B10: 0.106 | C10: 0.268 | D10: =100*B10/C10 -> 39.55223881 | R10: Fluid 1 | S10: Pass/Fail | T10: Fluid 2 | U10: Pass/Faill
A11: B5 | B11: 0.0154 | C11: 0.8503 | D11: =100*B11/C11 -> 1.811125485 | Q11: 600 rpm | R11: =Sheet1!I28 -> 0.4259840964 | S11: =IF(R11="","",IF(S7="Yes",IF(ISERR(IF(ABS(R11)<=$L$16,"Pass","Fail")),"",IF(ABS(R11)<=$L$16,"Pass","Fail")),"Pass")) -> Pass | T11: =Sheet1!I29 -> -0.2718332951 | U11: =IF(T11="","",IF(S7="Yes",IF(ISERR(IF(ABS(T11)<=$L$16,"Pass","Fail")),"",IF(ABS(T11)<=$L$16,"Pass","Fail")),"Pass")) -> Pass
Q12: 300 rpm | R12: =Sheet1!M28 -> -0.1 | S12: =IF(ISERR(IF(ABS(R12)<=$L$16,"Pass","Fail")),"",IF(ABS(R12)<=$L$16,"Pass","Fail")) -> Pass | T12: =Sheet1!M29 -> -0.2 | U12: Pass
A13: Spring | B13: k1 | Q13: 200 rpm | R13: =Sheet1!Q28 -> 0.3928122921 | S13: Pass | T13: =Sheet1!Q29 -> -0.05353873351 | U13: =IF(ISERR(IF(ABS(T13)<=$L$16,"Pass","Fail")),"",IF(ABS(T13)<=$L$16,"Pass","Fail")) -> Pass
A14: F0.2 | B14: 77.2 | Q14: 100 rpm | R14: =Sheet1!U28 -> 0.1097509751 | S14: Pass | T14: =Sheet1!U29 -> 0.104830483 | U14: =IF(ISERR(IF(ABS(T14)<=$L$16,"Pass","Fail")),"",IF(ABS(T14)<=$L$16,"Pass","Fail")) -> Pass
A15: F0.5 | B15: 193 | G15: =G8*G9/600 -> 0.4999882512 | J15: =G15*2/1.98 -> 0.5050386376 | S15: =IF(COUNTIF(S11:S14,"Pass")=4,"Pass",IF(COUNTIF(S11:S14,"Fail")>0,"Fail","")) -> Pass | U15: =IF(COUNTIF(U11:U14,"Pass")=4,"Pass",IF(COUNTIF(U11:U14,"Fail")>0,"Fail","")) -> Pass
A16: F1 | B16: 386 | G16: =G8*G9/300 -> 0.9999765024 | J16: =G16 -> 0.9999765024 | L16: =ROUND((1.5*G16),2) -> 1.5 | M16: ="±"&TEXT((1.5*G16),"#.00") -> ±1.50
A17: F2 | B17: 772 | G17: =1/(G8*G9/200) -> 0.6666823321 | J17: =G17 -> 0.6666823321
A18: F3 | B18: 1158 | G18: =1/(G8*G9/100) -> 0.3333411661 | J18: =G18 -> 0.3333411661 | Q18: as found
A19: F4 | B19: 1544 | J19: =FIXED(J15,4) -> 0.5050 | L19: ="600 VIS: 600 Reading * "&J19 -> 600 VIS: 600 Reading * 0.5050 | R19: Fluid 1 | S19: Pass/Fail | T19: Fluid 2 | U19: Pass/Faill
A20: F5 | B20: 1930 | G20: 2.330314791 | J20: =FIXED(J16,4) -> 1.0000 | L20: ="300 VIS: 300 Reading * "&J20 -> 300 VIS: 300 Reading * 1.0000 | Q20: 600 rpm | R20: =Sheet1!I21 ->  | S20: =IF(R20="","",IF(S16="Yes",IF(ISERR(IF(ABS(R20)<=$L$16,"Pass","Fail")),"",IF(ABS(R20)<=$L$16,"Pass","Fail")),"Pass")) ->  | T20: =Sheet1!I22 ->  | U20: =IF(T20="","",IF(S16="Yes",IF(ISERR(IF(ABS(T20)<=$L$16,"Pass","Fail")),"",IF(ABS(T20)<=$L$16,"Pass","Fail")),"Pass")) -> 
A21: F10 | B21: 3860 | J21: =FIXED(J17,4) -> 0.6667 | L21: ="200 VIS: 200 Reading / "&J21 -> 200 VIS: 200 Reading / 0.6667 | Q21: 300 rpm | R21: =Sheet1!M21 ->  | S21: =IF(ISERR(IF(ABS(R21)<=$L$16,"Pass","Fail")),"",IF(ABS(R21)<=$L$16,"Pass","Fail")) ->  | T21: =Sheet1!M22 ->  | U21: =IF(ISERR(IF(ABS(T21)<=$L$16,"Pass","Fail")),"",IF(ABS(T21)<=$L$16,"Pass","Fail")) -> 
J22: =FIXED(J18,4) -> 0.3333 | L22: ="100 VIS: 100 Reading / "&J22 -> 100 VIS: 100 Reading / 0.3333 | Q22: 200 rpm | R22: =Sheet1!Q21 ->  | T22: =Sheet1!Q22 -> 
Q23: 100 rpm | R23: =Sheet1!U21 ->  | T23: =Sheet1!U22 -> 
S24: =IF(COUNTIF(S20:S23,"Pass")=4,"Pass",IF(COUNTIF(S20:S23,"Fail")>0,"Fail","")) ->  | U24: =IF(COUNTIF(U20:U23,"Pass")=4,"Pass",IF(COUNTIF(U20:U23,"Fail")>0,"Fail","")) -> 
F26: 1000 cP | G26: 500 cP | H26: 200 cP | I26: 100 cP | J26: 50 cP | K26: 20 cP
F27: 500 cP | G27: 200 cP | H27: 100 cP | I27: 50 cP | J27: 20 cP | K27: 10 cP
G31: =IF(J16>7,F26,IF(J16>3.5,G26,IF(J16>1.4,H26,IF(J16>0.7,I26,IF(J16>0.35,J26,K26))))) -> 100 cP
G32: =IF(J16>7,F27,IF(J16>3.5,G27,IF(J16>1.4,H27,IF(J16>0.7,I27,IF(J16>0.35,J27,K27))))) -> 50 cP

Sheet Sheet3 (hidden)
A1: 130-10 | B1: Model 800 Viscometer
A2: 130-10-C | B2: Model 800 Viscometer, Complete
A3: 130-10-C-H | B3: Model 800 Viscometer, Hastelloy
A4: 130-10-L | B4: Model 800 Viscometer with Retractable Legs
A5: 130-10-99 | B5: Model 800 Viscometer, Reconditioned
A6: 130-60 | B6: 6-Speed Viscometer
A7: 130-60-99 | B7: 6-Speed Viscometer, Reconditioned | D7: rpm | E7: b1 100 | F7: b1 200 | G7: b5 100 | H7: b5 200
A8: 130-76 | B8: Model 900 Viscometer | D8: 50 | E8: 17.2 | F8: 34.5 | G8: 7.5 | H8: 15.5
A9: 130-76-C | B9: Model 900 Viscometer, Complete, 115 Volt | D9: 100 | E9: 34.2 | F9: 69.1 | G9: 15 | H9: 31
A10: 130-76-1-C | B10: Model 900 Viscometer, Complete, 230 Volt | D10: 150 | E10: 51.3 | F10: 103.9 | G10: 22.4 | H10: 46.5
A11: 130-76-H-C | B11: Model 900 Viscometer, Hastelloy, 115 Volt | D11: 200 | E11: 68.1 | F11: 138.2 | G11: 29.8 | H11: 61.9
A12: 130-76-1-H-C | B12: Model 900 Viscometer, Hastelloy, 230 Volt | D12: 250 | E12: 85.1 | F12: 172.4 | G12: 37.2 | H12: 77.2 | K12: rpm | L12: b1 100 | M12: b5 100 | N12: b5 200
A13: 130-76-K | B13: Model 900 Viscometer with KlikLok Bob, 115 Volt | D13: 300 | E13: 101.9 | F13: 206.5 | G13: 44.6 | H13: 92.5 | K13: 300 | L13: 101.9 | M13: 44.6 | N13: 92.5
A14: 130-76-1-K-C | B14: Model 900 Viscometer with KlikLok Bob, 230 Volt | D14: 350 | E14: 118.5 | F14: 240.6 | G14: 51.7 | H14: 107.8 | K14: 350 | L14: 118.5 | M14: 51.7 | N14: 107.8
A15: 130-76-LSK | B15: Model 900 LS Conversion Kit | D15: 400 | E15: 134.8 | F15: 274.1 | G15: 58.9 | H15: 122.4 | K15: 400 | L15: 134.8 | M15: 58.9 | N15: 122.4
A16: 130-76-99 | B16: Model 900 Viscometer (Reconditioned) | D16: 450 | E16: 151.3 | F16: 305.5 | G16: 66.1 | H16: 136.9 | K16: 450 | L16: 151.3 | M16: 66.1 | N16: 136.9
A17: 130-76-600 | B17: Model 900 Viscometer with No Legs or Base | D17: 500 | E17: 167.8 | F17: 337.8 | G17: 73.2 | H17: 151.5 | K17: 500 | L17: 167.8 | M17: 73.2 | N17: 151.5
A18: Other | B18: Other | D18: 550 | E18: 184.1 | F18: 341.8 | G18: 80.2 | H18: 165.8 | K18: 550 | L18: 184.1 | M18: 80.2 | N18: 165.8
A19: 130-60-12 | B19: 12 Speed Viscometer, 60 Hz | D19: 600 | E19: 200.1 | F19: 341.8 | G19: 87.3 | H19: 180.1 | K19: 600 | L19: 200.1 | M19: 87.3 | N19: 180.1
A20: 130-70-12 | B20: 12 Speed Viscometer, 50 Hz
A21: 900-02807 | B21: Model 900 Viscometer less Heat Cup
A22: 130-10-C-S | B22: Model 800 Viscometer , Complete, Stability Motor
A23: 130-10-S | B23: Model 800 Viscometer, Stability Motor
A24: 130-10-L-S | B24: Model 800 Viscometer,Retractable Legs,Stability Motor
A25: 130-10-B | B25: Model 800, Brookfield Model
A26: 130-11-C | B26: Model 800 Viscometer , Complete, Stability Motor

Sheet Sheet4 (hidden)
A1: AliasID | B1: SerialNumber | C1: Description | D1: Model | E1: CalDate | F1: DueDate
A2: 704 | B2: 221540132 | C2: Digital Thermometer | D2: 4000,90080-09 | E2: 2024-05-08 | F2: 2025-05-08
A5: AliasID | B5: SerialNumber | C5: Description | D5: Model | E5: CalDate | F5: DueDate
A6: 117 | B6: 10055320 | C6: Tachometer, Laser Photo | D6: 461920 | E6: 2023-09-13 | F6: 2024-09-13
A9: AliasID | B9: SerialNumber | C9: Description | D9: Model | E9: CalDate | F9: DueDate
A10: 345 | B10: Z395285 | C10: Thermometer / Hydrometer | D10: RH300 | E10: 2023-08-10 | F10: 2024-08-10
A14: 130-10
A15: 130-10-B
A16: 130-10-S
A17: 130-10-C
A18: 130-10-C-S
A19: 130-10-C-H
A20: 130-10-L
A21: 130-10-L-S
A22: 130-10-99
A23: 130-11-C
A24: 130-60
A25: 130-60-99
A26: 130-60-12
A27: 130-70-12
A28: 130-70-99
A29: 130-76
A30: 130-76-C
A31: 130-76-1-C
A32: 130-76-H-C
A33: 130-76-1-H-C
A34: 130-76-K
A35: 130-76-1-K-C
A36: 130-76-LSK
A37: 130-76-99
A38: 130-76-600
A39: 900-02807
